{"text_format":"3","workbook":"xlsx","n_sheets":6,"sheets":["Identification","Sommaire des frais","Honoraires","Dépenses ","Séances de travail","Affidavit"],"not_rendered":{"images":1,"macros":1,"defined_names":7},"read":"whole","date_system":"1900"}

{"sheet":"Identification","index":0,"n_rows":31,"n_cols":4,"rows_kept":31,"merged":[[3,0,3,3],[5,1,5,3],[6,0,6,2],[7,0,7,2],[8,0,8,2],[9,0,9,3],[21,1,22,1],[21,2,22,2],[24,1,25,1],[27,0,27,3],[28,0,28,3]]}
[]
[{"$nulls":3},"DEMANDE DE PAIEMENT DE FRAIS"]
[{"$nulls":3},"Identification des personnes"]
["Les cases complétées à la présente page sont reportées automatiquement ailleurs dans le formulaire, lorsque requis."]
["Numéro de dossier :","R-4141-2020","Période couverte : ","Janvier 2021 à octobre 2021"]
["Nom de l'intervenant :","Option consommateurs"]
["S'agit-il d'un regroupement? (oui/non)",null,null,"Non"]
["Taxes remboursées par le gouvernement? (0%, 50%, 100%)",null,null,{"v":0.5,"d":"50%"}]
["Membre responsable du paiement des factures :",null,null,"N/A"]
["IDENTIFICATION DES PERSONNES"]
["Nom des avocats","Expérience1","Interne/externe2","Adresse du lieu habituel de travail"]
["Éric McDevitt David","15+","Externe","485 rue McGill, bureau 500, Montréal, Québec, H2Y 2H4"]
[]
[]
[]
["Nom des analystes","Expérience1","Interne/externe2","Adresse du lieu habituel de travail"]
["Pascal Cormier","15+","Externe","4299, avenue de Lorimier, Montréal (Québec) H2H 2A9"]
["Sylvie De Bellefeuille","15+","Interne","440-50, rue Ste-Catherine Ouest, Montréal (Québec) H2X 3V4"]
["George Iny","15+","Interne","292, boul. St-Joseph Ouest, Montréal (Québec) H2V 2N7"]
[]
["Nom des témoins experts","Expérience1","Interne/externe2","Adresse du lieu habituel de travail"]
[null,"n/a","n/a"]
[]
["Nom des coordonnateurs","Expérience1","Interne/externe2","Adresse du lieu habituel de travail"]
[null,"n/a"]
[]
[]
["1   Correspond au nombre d'années d'exercice du droit ou de la profession complétées au début du dossier."]
["2   Une ressource est interne si elle est à l'emploi de l'intervenant."]
["BUDGET"]
["DEMANDE DE PAIEMENT DE FRAIS"]

{"sheet":"Sommaire des frais","index":1,"n_rows":36,"n_cols":4,"rows_kept":36,"merged":[[2,0,2,3],[4,1,4,3],[5,0,5,3],[6,1,6,2],[18,0,18,3],[19,0,19,2],[20,0,20,2],[22,0,22,2],[24,0,24,2],[26,0,26,2],[28,0,28,2],[30,0,30,2],[32,0,32,2],[35,0,35,3]]}
[{"$nulls":3},"DEMANDE DE PAIEMENT DE FRAIS"]
[{"$nulls":3},"Sommaire des frais"]
["Les cases reliées aux frais intérimaires reçus et au budget approuvé doivent être complétées par l'intervenant. Les autres renseignements doivent être complétés aux pages 1, 3, 4 et 5."]
["Numéro de dossier :",{"$f":"Identification!B5","v":"R-4141-2020"},"Période couverte : ",{"$f":"Identification!D5","v":"Janvier 2021 à octobre 2021"}]
["Nom de l'intervenant :",{"$f":"Identification!B6:D6","v":"Option consommateurs"}]
["HONORAIRES "]
["Type de ressources","Heures de préparation et d'audience",null,"Honoraires"]
[null,"Préparation :","Audience :","(incl. TPS/TVQ admissibles)"]
["Avocat",{"$f":"Honoraires!C14","v":{"v":72,"d":"72.00 "}},{"$f":"Honoraires!D14","v":{"v":15,"d":"15.00 "}},{"$f":"Honoraires!H14","v":{"v":28054.24,"d":"28,054.24 $"}}]
[null,"case 1 (réf. case 23)","case 5 (réf. case 24)","case 11 (réf. case 27)"]
["Analyste",{"$f":"Honoraires!C20","v":{"v":133.5,"d":"133.50 "}},{"$f":"Honoraires!D20","v":{"v":45,"d":"45.00 "}},{"$f":"Honoraires!H20","v":{"v":33632.85,"d":"33,632.85 $"}}]
[null,"case 2 (réf. case 28)","case 6 (réf. case 29)","case 12 (réf. case 32)"]
["Témoin expert",{"$f":"Honoraires!C24","v":{"v":0,"d":"0.00 "}},{"$f":"Honoraires!D24","v":{"v":0,"d":"0.00 "}},{"$f":"Honoraires!H24","v":0}]
[null,"case 3 (réf. case 33)","case 7 (réf. case 34)","case 13 (réf. case 37)"]
["Coordonnateur",{"$f":"Honoraires!C28","v":{"v":0,"d":"0.00 "}},{"$f":"Honoraires!D28","v":{"v":0,"d":"0.00 "}},{"$f":"Honoraires!H28","v":0}]
[null,"case 4 (réf. case 38)","case 8 (réf. case 39)","case 14 (réf. case 42)"]
["TOTAL / TEMPS ET HONORAIRES ",{"$f":"B9+B11+B13+B15","v":{"v":205.5,"d":"205.5 "}},{"$f":"C9+C11+C13+C15","v":{"v":60,"d":"60.0 "}},{"$f":"D9+D11+D13+D15","v":{"v":61687.09,"d":"61,687.09 $"}}]
[null,"case 9 (somme des cases 1 à 4)","case 10 (somme des cases 5 à 8)","case 15 (somme des cases 11 à 14)"]
["DÉPENSES"]
["Type de dépenses ",null,null,"Dépenses\n(incl. TPS/TVQ admissibles)"]
["Allocation forfaitaire (3% du total des honoraires)",null,null,{"$f":"ROUND(0.03*D17,2)","v":{"v":1850.61,"d":"1,850.61 $"}}]
[{"$nulls":3},"case 16 (3% de la case 15)"]
["Dépenses d'hébergement et de transport (si déplacement de plus de 100 km)",null,null,{"$f":"'Dépenses '!F21","v":0}]
[{"$nulls":3},"case 17 (réf. case 46)"]
["Dépense de traduction",null,null,{"$f":"'Dépenses '!F27","v":0}]
[{"$nulls":3},"case 18 (réf. case 47)"]
["TOTAL DES DÉPENSES",null,null,{"$f":"D21+D23+D25","v":{"v":1850.61,"d":"1,850.61 $"}}]
[{"$nulls":3},"case 19 (somme des cases 16 à 18)"]
["SÉANCES DE TRAVAIL",null,null,{"$f":"'Séances de travail'!G20","v":0}]
[{"$nulls":3},"case 20 (réf. case 48)"]
["TOTAL DES FRAIS RÉCLAMÉS PAR L'INTERVENANT",null,null,{"$f":"D17+D27+D29","v":{"v":63537.7,"d":"63,537.70 $"}}]
[{"$nulls":3},"case 21 (somme des cases 15, 19 et 20)"]
["FRAIS INTÉRIMAIRE REÇUS",null,null,0]
[{"$nulls":3},"case 22"]
["BUDGET APPROUVÉ ET ÉCART (%)",null,{"v":51780.98,"d":"51,780.98 $"},{"$f":"ROUND((D31-C35)/C35,4)","v":{"v":0.227,"d":"22.7%"}}]
["Tout écart de plus de 3% entre le total des frais réclamés et le budget approuvé doit être justifié dans une lettre accompagnant la présente demande de paiement de frais."]

{"sheet":"Honoraires","index":2,"n_rows":34,"n_cols":8,"rows_kept":34,"merged":[[2,0,2,7],[3,3,3,4],[3,5,3,7],[4,2,4,7],[5,1,5,7],[6,2,6,3],[7,2,7,3],[9,0,14,0],[13,4,14,4],[15,0,20,0],[19,4,20,4],[21,0,24,0],[23,4,24,4],[25,0,28,0],[27,4,28,4],[29,0,29,4],[30,0,30,1],[32,1,32,7],[33,0,33,7]]}
[{"$nulls":7},"DEMANDE DE PAIEMENT DE FRAIS"]
[{"$nulls":7},"Honoraires"]
["Les cases non ombragées doivent être complétées par l'intervenant."]
["Numéro de dossier :",null,{"$f":"Identification!B5","v":"R-4141-2020"},"Période couverte : ",null,{"$f":"Identification!D5","v":"Janvier 2021 à octobre 2021"}]
["Nom de l'intervenant :",null,{"$f":"Identification!B6","v":"Option consommateurs"}]
[null,"HONORAIRES"]
[]
["Type de ressources",null,"Heures",null,"Taux horaire ","Sous-total","TPS/TVQ\n(admissibles)","Total"]
[null,null,"Préparation","Audience"]
["Avocat",{"$f":"Identification!A12","v":"Éric McDevitt David"},{"v":72,"d":"72.00"},{"v":15,"d":"15.00"},{"v":300,"d":"300.00 $"},{"$f":"ROUND(((D10*E10)+(C10*E10)),2)","v":{"v":26100,"d":"26,100.00 $"}},{"v":1954.24,"d":"1,954.24 $"},{"$f":"ROUND(F10+G10,2)","v":{"v":28054.24,"d":"28,054.24 $"}}]
[null,{"$f":"Identification!A13","v":0},{"$nulls":3},{"$f":"ROUND(((D11*E11)+(C11*E11)),2)","v":{"v":0,"d":"0.00 $"}},null,{"$f":"ROUND(F11+G11,2)","v":{"v":0,"d":"0.00 $"}}]
[null,{"$f":"Identification!A14","v":0},{"$nulls":3},{"$f":"ROUND(((D12*E12)+(C12*E12)),2)","v":{"v":0,"d":"0.00 $"}},null,{"$f":"ROUND(F12+G12,2)","v":{"v":0,"d":"0.00 $"}}]
[null,{"$f":"Identification!A15","v":0},{"$nulls":3},{"$f":"ROUND(((D13*E13)+(C13*E13)),2)","v":{"v":0,"d":"0.00 $"}},null,{"$f":"ROUND(F13+G13,2)","v":{"v":0,"d":"0.00 $"}}]
[null,"Total :",{"$f":"SUM(C10:C13)","v":{"v":72,"d":"72.00"}},{"$f":"SUM(D10:D13)","v":{"v":15,"d":"15.00"}},null,{"$f":"F10+F11+F12+F13","v":{"v":26100,"d":"26,100.00 $"}},{"$f":"G10+G11+G12+G13","v":{"v":1954.24,"d":"1,954.24 $"}},{"$f":"ROUND(F14+G14,2)","v":{"v":28054.24,"d":"28,054.24 $"}}]
[null,null,"case 23","case 24",null,"case 25","case 26","case 27"]
["Analyste",{"$f":"Identification!A17","v":"Pascal Cormier"},{"v":81,"d":"81.00"},{"v":15,"d":"15.00"},{"v":240,"d":"240.00 $"},{"$f":"ROUND(((D16*E16)+(C16*E16)),2)","v":{"v":23040,"d":"23,040.00 $"}},{"v":1725.12,"d":"1,725.12 $"},{"$f":"ROUND(F16+G16,2)","v":{"v":24765.12,"d":"24,765.12 $"}}]
[null,{"$f":"Identification!A18","v":"Sylvie De Bellefeuille"},{"v":21.5,"d":"21.50"},{"v":15,"d":"15.00"},{"v":100,"d":"100.00 $"},{"$f":"ROUND(((D17*E17)+(C17*E17)),2)","v":{"v":3650,"d":"3,650.00 $"}},{"v":273.3,"d":"273.30 $"},{"$f":"ROUND(F17+G17,2)","v":{"v":3923.3,"d":"3,923.30 $"}}]
[null,{"$f":"Identification!A19","v":"George Iny"},{"v":31,"d":"31.00"},{"v":15,"d":"15.00"},{"v":100,"d":"100.00 $"},{"$f":"ROUND(((D18*E18)+(C18*E18)),2)","v":{"v":4600,"d":"4,600.00 $"}},{"v":344.43,"d":"344.43 $"},{"$f":"ROUND(F18+G18,2)","v":{"v":4944.43,"d":"4,944.43 $"}}]
[null,{"$f":"Identification!A20","v":0},{"$nulls":3},{"$f":"ROUND(((D19*E19)+(C19*E19)),2)","v":{"v":0,"d":"0.00 $"}},null,{"$f":"ROUND(F19+G19,2)","v":{"v":0,"d":"0.00 $"}}]
[null,"Total :",{"$f":"SUM(C16:C19)","v":{"v":133.5,"d":"133.50"}},{"$f":"SUM(D16:D19)","v":{"v":45,"d":"45.00"}},null,{"$f":"F16+F17+F18+F19","v":{"v":31290,"d":"31,290.00 $"}},{"$f":"G16+G17+G18+G19","v":{"v":2342.85,"d":"2,342.85 $"}},{"$f":"ROUND(F20+G20,2)","v":{"v":33632.85,"d":"33,632.85 $"}}]
[null,null,"case 28","case 29",null,"case 30","case 31","case 32"]
["T.É.",{"$f":"Identification!A22","v":0},{"$nulls":3},{"$f":"ROUND(((D22*E22)+(C22*E22)),2)","v":{"v":0,"d":"0.00 $"}},null,{"$f":"ROUND(F22+G22,2)","v":{"v":0,"d":"0.00 $"}}]
[null,{"$f":"Identification!A23","v":0},{"$nulls":3},{"$f":"ROUND(((D23*E23)+(C23*E23)),2)","v":{"v":0,"d":"0.00 $"}},null,{"$f":"ROUND(F23+G23,2)","v":{"v":0,"d":"0.00 $"}}]
[null,"Total :",{"$f":"SUM(C22:C23)","v":{"v":0,"d":"0.00"}},{"$f":"SUM(D22:D23)","v":{"v":0,"d":"0.00"}},null,{"$f":"F22+F23","v":{"v":0,"d":"0.00 $"}},{"$f":"G22+G23","v":{"v":0,"d":"0.00 $"}},{"$f":"ROUND(F24+G24,2)","v":{"v":0,"d":"0.00 $"}}]
[null,null,"case 33","case 34",null,"case 35","case 36","case 37"]
["Coor.",{"$f":"Identification!A25","v":0},{"$nulls":3},{"$f":"ROUND(((D26*E26)+(C26*E26)),2)","v":{"v":0,"d":"0.00 $"}},null,{"$f":"ROUND(F26+G26,2)","v":{"v":0,"d":"0.00 $"}}]
[null,{"$f":"Identification!A26","v":0},{"$nulls":3},{"$f":"ROUND(((D27*E27)+(C27*E27)),2)","v":{"v":0,"d":"0.00 $"}},null,{"$f":"ROUND(F27+G27,2)","v":{"v":0,"d":"0.00 $"}}]
[null,"Total :",{"$f":"SUM(C26:C27)","v":{"v":0,"d":"0.00"}},{"$f":"SUM(D26:D27)","v":{"v":0,"d":"0.00"}},null,{"$f":"F26+F27","v":{"v":0,"d":"0.00 $"}},{"$f":"G26+G27","v":{"v":0,"d":"0.00 $"}},{"$f":"ROUND(F28+G28,2)","v":{"v":0,"d":"0.00 $"}}]
[null,null,"case 38","case 39",null,"case 40","case 41","case 42"]
["TOTAL DES HONORAIRES",{"$nulls":4},{"$f":"F14+F20+F24+F28","v":{"v":57390,"d":"57,390.00 $"}},{"$f":"G14+G20+G24+G28","v":{"v":4297.09,"d":"4,297.09 $"}},{"$f":"H14+H20+H24+H28","v":{"v":61687.09,"d":"61,687.09 $"}}]
[{"$nulls":5},"case 43","case 44","case 45"]
[]
[]
["L'intervenant doit conserver, durant une période de trois ans à compter de l'octroi des frais, un registre horaire pour toutes les personnes dont le travail fail l'objet d'une demande de paiement de frais ainsi que les pièces justificatives des honoraires et des dépenses réclamés. Le registre horaire doit contenir minimalement les renseignements suivants : le nom de la personne, la date d'exécution du travail, les heures facturées, le taux horaire et une brève description du travail effectué."]

{"sheet":"Dépenses ","index":3,"n_rows":30,"n_cols":7,"rows_kept":30,"merged":[[2,0,2,5],[3,2,3,3],[3,4,3,5],[4,1,4,5],[5,1,5,5],[6,0,6,5],[10,1,12,1],[20,0,20,2],[22,0,22,5],[26,0,26,2],[29,0,29,5]]}
[{"$nulls":6},"DEMANDE DE PAIEMENT DE FRAIS"]
[{"$nulls":6},"Honoraires (suite)"]
["Les cases non ombragées doivent être complétées par l'intervenant."]
["Numéro de dossier :",{"$f":"Identification!B5","v":"R-4141-2020"},"Période couverte : ",null,{"$f":"Identification!D5","v":"Janvier 2021 à octobre 2021"}]
["Nom de l'intervenant :",{"$f":"Identification!B6:D6","v":"Option consommateurs"}]
["Nom des personnes :"]
["DÉPENSES DE TRANSPORT ET D'HÉBERGEMENT1"]
[]
["Transport","Tarif","Nombre de\nkilomètres","Sous-total","TPS/TVQ\n(admissibles)","Total"]
["Automobile","0,470 $/km",null,{"$f":"ROUND(0.47*C10,2)","v":0},null,{"$f":"ROUND(D10+E10,2)","v":0}]
["Autobus ","classe\néconomique",{"$nulls":3},{"$f":"ROUND(D11+E11,2)","v":0}]
["Train",{"$nulls":4},{"$f":"ROUND(D12+E12,2)","v":0}]
["Avion",{"$nulls":4},{"$f":"ROUND(D13+E13,2)","v":0}]
[]
["Hébergement","Tarif \njournalier","Nombre \nde jours","Sous-total","TPS/TVQ\n(admissibles)","Total"]
["Région de Montréal \n(maximum de 165,00 $ par jour avant taxes)",null,null,{"$f":"ROUND(B16*C16,2)","v":0},null,{"$f":"ROUND(D16+E16,2)","v":0}]
["Région de Québec \n(maximum de 150,00 $ par jour avant taxes)",null,null,{"$f":"ROUND(B17*C17,2)","v":0},null,{"$f":"ROUND(D17+E17,2)","v":0}]
["Région de Gatineau \n(maximum de 135,00 $ par jour avant taxes)",null,null,{"$f":"ROUND(B18*C18,2)","v":0},null,{"$f":"ROUND(D18+E18,2)","v":0}]
["Ailleurs au Québec\n(maximum de 100,00 $ par jour avant taxes)",null,null,{"$f":"ROUND(B19*C19,2)","v":0},null,{"$f":"ROUND(D19+E19,2)","v":0}]
["Hébergement privé\n(maximum de 95,00 $ par jour)",null,null,{"$f":"ROUND(B20*C20,2)","v":0},"n/a",{"$f":"ROUND(B20*C20,2)","v":0}]
["TOTAL DES DÉPENSES DE TRANSPORT ET D'HÉBERGEMENT",null,null,{"$f":"D10+D11+D12+D13+D16+D17+D18+D19+D20","v":0},{"$f":"E10+E11+E12+E13+E16+E17+E18+E19","v":0},{"$f":"F10+F11+F12+F13+F16+F17+F18+F19+F20","v":0}]
[{"$nulls":5},"case 46"]
["DÉPENSES DE TRADUCTION"]
[]
["Traduction","Tarif","Nombre \nde mots","Sous-total","TPS/TVQ\n(admissibles)","Total"]
["Traduction\n(maximum de 0,25 $/mot)",null,null,{"$f":"ROUND(B26*C26,2)","v":0},null,{"$f":"ROUND(D26+E26,2)","v":0}]
["TOTAL DES DÉPENSES DE TRADUCTION",null,null,{"$f":"D26","v":0},{"$f":"E26","v":0},{"$f":"F26","v":0}]
[{"$nulls":5},"case 47"]
[]
["1   L'intervenant doit, pour chaque montant réclamé, fournir les pièces justificatives et, lorsque le total réclamé réfère à plusieurs pièces, fournir une note qui concilie les dépenses encourues et les dépenses présentées sur ce formulaire."]

{"sheet":"Séances de travail","index":4,"n_rows":24,"n_cols":7,"rows_kept":24,"merged":[[2,0,2,6],[3,0,3,1],[3,3,3,4],[3,5,3,6],[4,0,4,1],[4,2,4,6],[5,0,5,6],[19,0,19,3],[23,0,23,6]]}
[{"$nulls":6},"DEMANDE DE PAIEMENT DE FRAIS"]
[{"$nulls":6},"Séances de travail"]
["Les cases non ombragées doivent être complétées par l'intervenant."]
["Numéro de dossier :",null,{"$f":"Identification!B5","v":"R-4141-2020"},"Période couverte : ",null,{"$f":"Identification!D5","v":"Janvier 2021 à octobre 2021"}]
["Nom de l'intervenant :",null,{"$f":"Identification!B6","v":"Option consommateurs"}]
["SÉANCES DE TRAVAIL"]
[]
["Date - séance\n(aaaa/mm/jj)","Durée \n(heures)","Nom des \nparticipants","Interne/ \nexterne1","Sous-total","TPS/TVQ\n(admissibles)","Total"]
[{"$nulls":6},{"$f":"SUM(E9:F9)","v":0}]
[{"$nulls":6},{"$f":"SUM(E10:F10)","v":0}]
[{"$nulls":6},{"$f":"SUM(E11:F11)","v":0}]
[{"$nulls":6},0]
[{"$nulls":6},0]
[{"$nulls":6},0]
[{"$nulls":6},0]
[{"$nulls":6},0]
[{"$nulls":6},0]
[{"$nulls":6},0]
[{"$nulls":6},0]
["TOTAL DES SÉANCES DE TRAVAIL ",{"$nulls":3},{"$f":"SUM(E9:E19)","v":0},{"$f":"SUM(F9:F19)","v":0},{"$f":"SUM(G9:G19)","v":0}]
[{"$nulls":6},"case 48"]
[]
[]
["1   Le participant à la séance de travail est une ressource interne s'il est à l'emploi de l'intervenant."]

{"sheet":"Affidavit","index":5,"n_rows":31,"n_cols":10,"rows_kept":31,"merged":[[0,0,0,9],[1,0,1,2],[1,3,1,8],[2,3,2,8],[4,2,4,7],[5,2,5,7],[6,1,6,9],[7,1,7,9],[8,1,8,9],[9,1,9,9],[11,1,11,4],[12,4,12,5],[12,7,12,9],[13,4,13,5],[13,7,13,9],[14,0,14,4],[15,0,15,4],[19,2,19,7],[20,2,20,7],[21,4,21,8],[22,4,22,8],[23,1,23,9],[25,1,25,4],[26,4,26,5],[26,7,26,9],[27,4,27,5],[27,7,27,9],[28,0,28,4],[29,0,29,4]]}
["AFFIDAVIT"]
["Numéro de dossier :",null,null,{"$f":"Identification!B5","v":"R-4141-2020"}]
["Nom de l'intervenant :",null,null,{"$f":"Identification!B6","v":"Option consommateurs"}]
[]
["Je, soussigné,",null,"Éric McDevitt David",{"$nulls":5},", déclare solennement ce qui suit:"]
[null,null,"(nom et occupation)"]
["1.","Je suis le mandataire dûment autorisé de l'intervenant pour déposer la présente demande de paiement de frais et j'ai une connaissance personnelle du dossier;"]
["2.","Les montants réclamés correspondent aux travaux effectués dans le présent dossier;"]
["3.","Les frais sont exacts et conformes au Guide de paiement de frais des intervenants;"]
["4.","Le registre horaire et les pièces justificatives existent, ils seront conservés durant le délai prescrit par le Guide et seront produits sur demande à la Régie."]
["Déclaré solennellement devant moi,",{"$nulls":6},"Et j'ai signé,"]
["à",{"$nulls":4},","]
["le",null,"e jour de"]
[null,"jour",null,"mois","année",null,null,"(signature de l'affiant)"]
[]
["Commissaire à l'assermentation"]
["(nom, signature et sceau)"]
[]
[]
["Je, soussigné,",{"$nulls":7},", déclare solennement ce qui suit:"]
[null,null,"(nom et occupation)"]
["1.","Je suis le mandataire dûment autorisé de",{"$nulls":7},", membre du"]
[null,"regroupement intervenant;",null,null,"(nom du membre)"]
["2.","Ce membre est désigné par l'intervenant comme le responsable du paiement de toutes les factures du regroupement."]
["Déclaré solennellement devant moi,",{"$nulls":6},"Et j'ai signé,"]
["à",{"$nulls":4},","]
["le",null,"e jour de"]
[null,"jour",null,"mois","année",null,null,"(signature de l'affiant)"]
[]
["Commissaire à l'assermentation"]
["(nom, signature et sceau)"]